fUSD/lending_fUSD_20250515
["ID","MTS","AMOUNT","RATE_DAILY","PERIOD"]
[361135703,1747301293298,-400.0,0.00011376,2]
[361135704,1747301293322,-400.0,0.00011376,2]
[361135705,1747301293346,-404.25942548,0.00011376,2]
[361135706,1747301293369,-1763.95,0.00011376,2]
[361135707,1747301293393,-151.0,0.00011376,2]
[361135708,1747301293417,-400.0,0.00011376,2]
[361135709,1747301293440,-151.0,0.00011376,2]
[361135710,1747301293465,-151.0,0.00011376,2]
[361135711,1747301293489,-403.41648443,0.00011376,2]
[361135712,1747301293514,-151.0,0.00011376,2]
[361135713,1747301293538,-400.0,0.00011376,2]
[361135714,1747301293562,-151.0,0.00011376,2]
[361135715,1747301293585,-151.0,0.00011376,2]
[361135716,1747301293609,-400.0,0.00011376,2]
[361135717,1747301293633,-407.60016103,0.00011376,2]
[361135718,1747301293656,-400.0,0.00011376,2]
[361135719,1747301293679,-155.09567846,0.00011376,2]
[361135720,1747301293704,-311.82324745,0.00011376,2]
[361135721,1747301293729,-400.0,0.00011376,2]
[361135722,1747301293754,-400.0,0.00011376,2]
[361135723,1747301293779,-406.88409872,0.00011376,2]
[361135724,1747301293803,-400.0,0.00011376,2]
[361135725,1747301293827,-400.0,0.00011376,2]
[361135726,1747301293851,-409.92987336,0.00011376,2]
[361135727,1747301293874,-410.60713903,0.00011376,2]
[361135728,1747301293899,-1455.99,0.00011376,2]
[361135729,1747301293924,-406.62586374,0.00011376,2]
[361135730,1747301293948,-400.0,0.00011376,2]
[361135731,1747301293973,-400.0,0.00011376,2]
[361135732,1747301293996,-405.46838425,0.00011376,2]
[361135733,1747301294019,-401.4473657,0.00011376,2]
[361135734,1747301294042,-400.0,0.00011376,2]
[361135735,1747301294066,-400.0,0.00011376,2]
[361135736,1747301294088,-401.50833158,0.00011376,2]
[361135737,1747301294111,-404.46602647,0.00011376,2]
[361135738,1747301294134,-400.0,0.00011376,2]
[361135739,1747301294157,-592.4,0.00011376,2]
[361135740,1747301294394,-365.22379584,0.00011376,2]
[361135741,1747301294421,-402.59602258,0.00011376,2]
[361135742,1747301294448,-400.0,0.00011376,2]
[361135743,1747301294473,-400.0,0.00011376,2]
[361135744,1747301294498,-401.78639816,0.00011376,2]
[361135745,1747301294521,-400.83941409,0.00011376,2]
[361135746,1747301294544,-400.0,0.00011376,2]
[361135747,1747301294569,-499.46108,0.00011376,2]
[361135748,1747301294592,-499.46108,0.00011376,2]
[361135749,1747301294616,-400.0,0.00011376,2]
[361135750,1747301294640,-402.29276565,0.00011376,2]
[361135751,1747301294665,-499.46108,0.00011376,2]
[361135752,1747301294688,-400.0,0.00011376,2]
[361135753,1747301294713,-401.27674022,0.00011376,2]
[361135754,1747301294740,-400.0,0.00011376,2]
[361135755,1747301294765,-499.46108,0.00011376,2]
[361135756,1747301294789,-499.46108,0.00011376,2]
[361135757,1747301294817,-405.6150075,0.00011376,2]
[361135758,1747301294841,-499.46108,0.00011376,2]
[361135759,1747301294866,-400.0,0.00011376,2]
[361135760,1747301294891,-400.0,0.00011376,2]
[361135761,1747301294915,-400.0,0.00011376,2]
[361135762,1747301294938,-400.0,0.00011376,2]
[361135763,1747301294964,-400.0,0.00011376,2]
[361135764,1747301294988,-400.0,0.00011376,2]
[361135765,1747301295012,-635.97762227,0.00011376,2]
[361135766,1747301295037,-1214.4,0.00011376,2]
[361135767,1747301295060,-401.28542215,0.00011376,2]
[361135768,1747301295084,-400.0,0.00011376,2]
[361135769,1747301295109,-401.93114711,0.00011376,2]
[361135770,1747301295132,-400.0,0.00011376,2]
[361135771,1747301295155,-545.1078334,0.00011376,2]
[361135772,1747301295180,-748.32,0.00011376,2]
[361135773,1747301295202,-400.0,0.00011376,2]
[361135774,1747301295228,-400.0,0.00011376,2]
[361135775,1747301295251,-406.518107,0.00011376,2]
[361135776,1747301295275,-400.0,0.00011376,2]
[361135777,1747301295298,-400.0,0.00011376,2]
[361135778,1747301295322,-313.5500508,0.00011376,2]
[361135779,1747301295346,-400.0,0.00011376,2]
[361135780,1747301295371,-400.0,0.00011376,2]
[361135781,1747301295394,-1224.43,0.00011376,2]
[361135782,1747301295417,-404.28388365,0.00011376,2]
[361135783,1747301295441,-400.89150452,0.00011376,2]
[361135784,1747301295468,-400.0,0.00011376,2]
[361135785,1747301295493,-400.0,0.00011376,2]
[361135786,1747301295517,-400.70708232,0.00011376,2]
[361135787,1747301295541,-406.5969325,0.00011376,2]
[361135788,1747301295565,-406.4988386,0.00011376,2]
[361135789,1747301295590,-1051.7,0.00011376,2]
[361135790,1747301295613,-400.0,0.00011376,2]
[361135791,1747301295638,-410.19717044,0.00011376,2]
[361135792,1747301295662,-1262.3,0.00011376,2]
[361135793,1747301295687,-410.35291628,0.00011376,2]
[361135794,1747301295712,-872.62,0.00011376,2]
[361135795,1747301295739,-400.0,0.00011376,2]
[361135796,1747301295762,-400.0,0.00011376,2]
[361135797,1747301295786,-403.74064924,0.00011376,2]
[361135798,1747301295813,-400.0,0.00011376,2]
[361135799,1747301295836,-401.17279481,0.00011376,2]
[361135800,1747301295860,-400.0,0.00011376,2]
[361135801,1747301295884,-408.82192535,0.00011376,2]
[361135802,1747301295910,-400.0,0.00011376,2]
[361135803,1747301295933,-401.72247957,0.00011376,2]
[361135804,1747301295958,-5275.4,0.00011376,2]
[361135805,1747301295981,-406.81188679,0.00011376,2]
[361135806,1747301296005,-400.0,0.00011376,2]
[361135807,1747301296028,-400.0,0.00011376,2]
[361135808,1747301296050,-515.55861295,0.00011376,2]
[361135809,1747301296073,-400.0,0.00011376,2]
[361135810,1747301296096,-400.0,0.00011376,2]
[361135811,1747301296119,-400.0,0.00011376,2]
[361135812,1747301296142,-465.34,0.00011376,2]
[361135813,1747301296165,-413.85843971,0.00011376,2]
[361135814,1747301296188,-463.68436715,0.00011376,2]
[361135815,1747301296213,-4877.27,0.00011376,2]
[361135816,1747301296236,-406.66058507,0.00011376,2]
[361135817,1747301296259,-401.5320511,0.00011376,2]
[361135818,1747301296282,-400.0,0.00011376,2]
[361135819,1747301296307,-406.60130909,0.00011376,2]
[361135820,1747301296330,-400.0,0.00011376,2]
[361135821,1747301296353,-151.0,0.00011376,2]
[361135822,1747301296377,-151.0,0.00011376,2]
[361135823,1747301296400,-151.0,0.00011376,2]
[361135824,1747301296423,-151.0,0.00011376,2]
[361135825,1747301296447,-403.19231544,0.00011376,2]
[361135826,1747301296472,-151.0,0.00011376,2]
[361135827,1747301296496,-1706.2,0.00011376,2]
[361135828,1747301296520,-500.0,0.00011376,2]
[361135829,1747301296544,-400.0,0.00011376,2]
[361135830,1747301296567,-400.0,0.00011376,2]
[361135831,1747301296591,-400.0,0.00011376,2]
[361135832,1747301296615,-407.89399724,0.00011376,2]
[361135833,1747301296639,-2312.8,0.00011376,2]
[361135834,1747301296662,-500.0,0.00011376,2]
[361135835,1747301296686,-406.90712843,0.00011376,2]
[361135836,1747301296710,-402.44295445,0.00011376,2]
[361135837,1747301296736,-400.0,0.00011376,2]
[361135838,1747301296761,-400.0,0.00011376,2]
[361135839,1747301296785,-400.0,0.00011376,2]
[361135840,1747301296810,-400.0,0.00011376,2]
[361135841,1747301296833,-400.90298432,0.00011376,2]
[361135842,1747301296856,-151.0,0.00011376,2]
[361135843,1747301296879,-151.0,0.00011376,2]
[361135844,1747301296903,-151.0,0.00011376,2]
[361135845,1747301296927,-400.0,0.00011376,2]
[361135846,1747301296950,-400.0,0.00011376,2]
[361135847,1747301296974,-151.0,0.00011376,2]
[361135848,1747301296997,-151.0,0.00011376,2]
[361135849,1747301297019,-375.13268573,0.00011376,2]
[361135850,1747301297043,-402.25965589,0.00011376,2]
[361135851,1747301297067,-401.33269651,0.00011376,2]
[361135852,1747301297091,-500.0,0.00011376,2]
[361135853,1747301297114,-405.92995087,0.00011376,2]
[361135854,1747301297136,-400.0,0.00011376,2]
[361135855,1747301297159,-405.52532224,0.00011376,2]
[361135856,1747301297182,-400.0,0.00011376,2]
[361135857,1747301297205,-400.2798709,0.00011376,2]
[361135858,1747301297422,-622.37,0.00011376,2]
[361135859,1747301297445,-405.56092649,0.00011376,2]
[361135860,1747301297470,-403.70387339,0.00011376,2]
[361135861,1747301297495,-151.0,0.00011376,2]
[361135862,1747301297728,-151.0,0.00011376,2]
[361135863,1747301297752,-400.0,0.00011376,2]
[361135864,1747301297778,-151.0,0.00011376,2]
[361135865,1747301297802,-151.0,0.00011376,2]
[361135866,1747301297825,-408.02602621,0.00011376,2]
[361135867,1747301297847,-409.69953789,0.00011376,2]
[361135868,1747301297870,-3012.47,0.00011376,2]
[361135869,1747301297894,-502.57960279,0.00011376,2]
[361135870,1747301297917,-400.0,0.00011376,2]
[361135871,1747301297941,-215.769568,0.00011376,2]
[361135872,1747301297967,-458.44153867,0.00011376,2]
[361135873,1747301297991,-151.0,0.00011376,2]
[361135874,1747301298013,-404.34328097,0.00011376,2]
[361135875,1747301298038,-151.0,0.00011376,2]
[361135876,1747301298063,-400.0,0.00011376,2]
[361135877,1747301298087,-151.0,0.00011376,2]
[361135878,1747301298111,-400.0,0.00011376,2]
[361135879,1747301298135,-400.0,0.00011376,2]
[361135880,1747301298159,-500.0,0.00011376,2]
[361135881,1747301298183,-151.0,0.00011376,2]
[361135882,1747301298207,-151.0,0.00011376,2]
[361135883,1747301298237,-405.91398891,0.00011376,2]
[361135884,1747301298269,-664.97,0.00011376,2]
[361135885,1747301298295,-151.0,0.00011376,2]
[361135886,1747301298320,-405.04573891,0.00011376,2]
[361135887,1747301298345,-400.0,0.00011376,2]
[361135888,1747301298370,-411.82748373,0.00011376,2]
[361135889,1747301298397,-400.0,0.00011376,2]
[361135890,1747301298422,-400.0,0.00011376,2]
[361135891,1747301298447,-400.0,0.00011376,2]
[361135892,1747301298475,-400.0,0.00011376,2]
[361135893,1747301298501,-406.77211971,0.00011376,2]
[361135894,1747301298527,-401.20664379,0.00011376,2]
[361135895,1747301298552,-400.0,0.00011376,2]
[361135896,1747301298577,-400.0,0.00011376,2]
[361135897,1747301298603,-400.0,0.00011376,2]
[361135898,1747301298630,-400.0,0.00011376,2]
[361135899,1747301298655,-401.10307695,0.00011376,2]
[361135900,1747301298680,-424.36,0.00011376,2]
[361135901,1747301298705,-403.55329106,0.00011376,2]
[361135902,1747301298734,-2181.81,0.00011376,2]
[361135903,1747301298766,-403.04912403,0.00011376,2]
[361135904,1747301298793,-189.402386,0.00011376,2]
[361135905,1747301298820,-400.0,0.00011376,2]
[361135906,1747301298848,-189.402386,0.00011376,2]
[361135907,1747301298874,-400.0,0.00011376,2]
[361135908,1747301298902,-189.402386,0.00011376,2]
[361135909,1747301298929,-189.402386,0.00011376,2]
[361135910,1747301298955,-189.402386,0.00011376,2]
[361135911,1747301298981,-400.0,0.00011376,2]
[361135912,1747301299008,-189.402386,0.00011376,2]
[361135913,1747301299034,-400.0,0.00011376,2]
[361135914,1747301299061,-400.0,0.00011376,2]
[361135915,1747301299089,-189.402386,0.00011376,2]
[361135916,1747301299116,-189.402386,0.00011376,2]
[361135917,1747301299143,-400.0,0.00011376,2]
[361135918,1747301299169,-189.402386,0.00011376,2]
[361135919,1747301299196,-4919.33,0.00011376,2]
[361135920,1747301299223,-189.40239,0.00011376,2]
[361135921,1747301299253,-401.60410291,0.00011376,2]
[361135922,1747301299279,-400.0,0.00011376,2]
[361135923,1747301299306,-400.0,0.00011376,2]
[361135924,1747301299333,-405.031697,0.00011376,2]
[361135925,1747301299360,-2511.716383,0.00011376,2]
[361135926,1747301299386,-400.0,0.00011376,2]
[361135927,1747301299414,-400.0,0.00011376,2]
[361135928,1747301299443,-2511.716383,0.00011376,2]
[361135929,1747301299472,-2511.716383,0.00011376,2]
[361135930,1747301299498,-2511.716383,0.00011376,2]
[361135931,1747301299524,-2511.716383,0.00011376,2]
[361135932,1747301299551,-400.0,0.00011376,2]
[361135933,1747301299579,-400.0,0.00011376,2]
[361135934,1747301299604,-13543.41,0.00011376,2]
[361135935,1747301299630,-400.0,0.00011376,2]
[361135936,1747301299656,-2511.716383,0.00011376,2]
[361135937,1747301299681,-2511.716383,0.00011376,2]
[361135938,1747301299708,-2511.716383,0.00011376,2]
[361135939,1747301299734,-2511.716383,0.00011376,2]
[361135940,1747301299759,-2511.716377,0.00011376,2]
[361135941,1747301299784,-400.0,0.00011376,2]
[361135942,1747301299810,-405.22585216,0.00011376,2]
[361135943,1747301299834,-404.03954632,0.00011376,2]
[361135944,1747301299858,-696.51,0.00011376,2]
[361135945,1747301299882,-400.0,0.00011376,2]
[361135946,1747301299906,-400.0,0.00011376,2]
[361135947,1747301299932,-400.0,0.00011376,2]
[361135948,1747301299956,-404.84671363,0.00011376,2]
[361135949,1747301299981,-4550.65,0.00011376,2]
[361135950,1747301300006,-400.0,0.00011376,2]
[361135951,1747301300030,-400.0,0.00011376,2]
[361135952,1747301300054,-400.0,0.00011376,2]
[361135953,1747301300079,-754.53,0.00011376,2]
[361135954,1747301300104,-400.0,0.00011376,2]
[361135955,1747301300128,-6945.29,0.00011376,2]
[361135956,1747301300152,-407.33067469,0.00011376,2]
[361135957,1747301300176,-151.0,0.00011377,2]
[361135958,1747301300214,-151.0,0.00011377,2]
[361135959,1747301300240,-151.0,0.00011377,2]
[361135960,1747301300265,-151.0,0.00011377,2]
[361135961,1747301300290,-151.0,0.00011377,2]
[361135962,1747301300314,-151.0,0.00011377,2]
[361135963,1747301300339,-151.0,0.00011377,2]
[361135964,1747301300364,-151.0,0.00011377,2]
[361135965,1747301300389,-151.0,0.00011377,2]
[361135966,1747301300414,-151.0,0.00011377,2]
[361135967,1747301300438,-151.0,0.00011377,2]
[361135968,1747301300464,-151.0,0.00011377,2]
[361135969,1747301300488,-151.702596,0.00011377,2]
[361135970,1747301300516,-151.0,0.00011377,2]
[361135971,1747301300540,-151.0,0.00011377,2]
[361135972,1747301300565,-151.0,0.00011377,2]
[361135973,1747301300591,-151.0,0.00011377,2]
[361135974,1747301300615,-151.0,0.00011377,2]
[361135975,1747301300941,-151.0,0.00011377,2]
[361135976,1747301300967,-151.0,0.00011377,2]
[361135977,1747301300996,-151.0,0.00011377,2]
[361135978,1747301301019,-151.0,0.00011377,2]
[361135979,1747301301045,-151.0,0.00011377,2]
[361135980,1747301301068,-151.0,0.00011377,2]
[361135981,1747301301092,-1175.596063,0.00011377,2]
[361135982,1747301301117,-1175.596063,0.00011377,2]
[361135983,1747301301141,-151.0,0.00011377,2]
[361135984,1747301301164,-151.0,0.00011377,2]
[361135985,1747301301188,-232.957707,0.00011377,2]
[361135986,1747301301214,-170.947587,0.00011377,2]
[361135987,1747301301238,-170.947587,0.00011377,2]
[361135988,1747301301264,-1175.596063,0.00011377,2]
[361135989,1747301301288,-1175.596063,0.00011377,2]
[361135990,1747301301313,-159.159755,0.00011377,2]
[361135991,1747301301337,-170.947587,0.00011377,2]
[361135992,1747301301361,-170.947587,0.00011377,2]
[361135993,1747301301386,-238.57943,0.00011377,2]
[361135994,1747301301411,-151.0,0.00011377,2]
[361135995,1747301301435,-151.0,0.00011377,2]
[361135996,1747301301461,-151.0,0.00011377,2]
[361135997,1747301301487,-151.0,0.00011377,2]
[361135998,1747301301512,-274.656473,0.00011377,2]
[361135999,1747301301538,-274.656473,0.00011377,2]
[361136000,1747301301564,-274.656473,0.00011377,2]
[361136001,1747301301589,-274.656473,0.00011377,2]
[361136002,1747301301615,-274.656473,0.00011377,2]
[361136003,1747301301643,-274.656473,0.00011377,2]
[361136004,1747301301668,-151.0,0.00011377,2]
[361136005,1747301301693,-151.0,0.00011377,2]
[361136006,1747301301718,-572.407252,0.00011377,2]
[361136007,1747301301748,-572.407252,0.00011377,2]
[361136008,1747301301775,-572.407252,0.00011377,2]
[361136009,1747301301800,-572.407252,0.00011377,2]
[361136010,1747301301825,-151.0,0.00011377,2]
[361136011,1747301301848,-151.0,0.00011377,2]
[361136012,1747301301873,-151.0,0.00011377,2]
[361136013,1747301301898,-151.0,0.00011377,2]
[361136014,1747301301921,-151.0,0.00011377,2]
[361136015,1747301301946,-151.0,0.00011377,2]
[361136016,1747301301971,-151.0,0.00011377,2]
[361136017,1747301301997,-151.0,0.00011377,2]
[361136018,1747301302021,-151.0,0.00011377,2]
[361136019,1747301302045,-151.0,0.00011377,2]
[361136020,1747301302070,-151.0,0.00011377,2]
[361136021,1747301302094,-153.307011,0.00011377,2]
[361136022,1747301302120,-151.0,0.00011377,2]
[361136023,1747301302143,-151.0,0.00011377,2]
[361136024,1747301302167,-186.367216,0.00011377,2]
[361136025,1747301302192,-186.367216,0.00011377,2]
[361136026,1747301302215,-186.367216,0.00011377,2]
[361136027,1747301302240,-161.258318,0.00011377,2]
[361136028,1747301302265,-186.367216,0.00011377,2]
[361136029,1747301302288,-161.258318,0.00011377,2]
[361136030,1747301302312,-186.367216,0.00011377,2]
[361136031,1747301302335,-186.367216,0.00011377,2]
[361136032,1747301302361,-161.258318,0.00011377,2]
[361136033,1747301302385,-161.258318,0.00011377,2]
[361136034,1747301302410,-192.238075,0.00011377,2]
[361136035,1747301302434,-151.0,0.00011377,2]
[361136036,1747301302460,-151.0,0.00011377,2]
[361136037,1747301302484,-294.342726,0.00011377,2]
[361136038,1747301302509,-151.0,0.00011377,2]
[361136039,1747301302533,-151.0,0.00011377,2]
[361136040,1747301302558,-499.46108,0.00011377,2]
[361136041,1747301302583,-499.46108,0.00011377,2]
[361136042,1747301302610,-499.46108,0.00011377,2]
[361136043,1747301302638,-499.46108,0.00011377,2]
[361136044,1747301302665,-151.0,0.00011377,2]
[361136045,1747301302690,-151.0,0.00011377,2]
[361136046,1747301302715,-193.551872,0.00011377,2]
[361136047,1747301302742,-300.00609993,0.00011381,2]
[361136048,1747301302765,-400.0,0.00011381,2]
[361136049,1747301302789,-169.20509372,0.00011381,2]
[361136050,1747301302814,-167.50961743,0.00011381,2]
[361136051,1747301302837,-509.88358228,0.00011381,2]
[361136052,1747301302861,-400.0,0.00011381,2]
[361136053,1747301302885,-400.0,0.00011381,2]
[361136054,1747301302911,-400.0,0.00011381,2]
[361136055,1747301302936,-403.63431699,0.00011381,2]
[361136056,1747301302959,-401.86336123,0.00011381,2]
[361136057,1747301302983,-400.0,0.00011381,2]
[361136058,1747301303007,-500.0,0.00011381,2]
[361136059,1747301303031,-500.0,0.00011381,2]
[361136060,1747301303055,-300.0,0.00011381,2]
[361136061,1747301303082,-305793.04713432,0.00011382,2]
[361136062,1747301303106,-400.0,0.00011382,2]
[361136063,1747301303130,-500.0,0.00011382,2]
[361136064,1747301303154,-151.0,0.00011382,2]
[361136065,1747301303178,-400.0,0.00011382,2]
[361136066,1747301303202,-400.0,0.00011382,2]
[361136067,1747301303228,-400.0,0.00011382,2]
[361136068,1747301303251,-227.88690976,0.00011382,2]
[361136069,1747301303275,-400.0,0.00011382,2]
[361136070,1747301303299,-400.0,0.00011382,2]
[361136071,1747301303322,-400.0,0.00011382,2]
[361136072,1747301303347,-465.42,0.00011382,2]
[361136073,1747301303373,-400.0,0.00011382,2]
[361136074,1747301303398,-400.0,0.00011382,2]
[361136075,1747301303424,-632.2,0.00011382,2]
[361136076,1747301303448,-407.62,0.00011382,2]
[361136077,1747301303473,-400.0,0.00011382,2]
[361136078,1747301303497,-400.0,0.00011382,2]
[361136079,1747301303521,-400.0,0.00011382,2]
[361136080,1747301303545,-400.0,0.00011382,2]
[361136081,1747301303569,-400.0,0.00011382,2]
[361136082,1747301303593,-400.0,0.00011382,2]
[361136083,1747301303616,-400.0,0.00011382,2]
[361136084,1747301303642,-400.0,0.00011382,2]
[361136085,1747301303874,-400.0,0.00011382,2]
[361136086,1747301303900,-400.0,0.00011382,2]
[361136087,1747301303927,-400.0,0.00011382,2]
[361136088,1747301303951,-400.0,0.00011382,2]
[361136089,1747301303974,-400.0,0.00011382,2]
[361136090,1747301303998,-400.0,0.00011382,2]
[361136091,1747301304215,-404.85861165,0.00011382,2]
[361136092,1747301304242,-400.0,0.00011382,2]
[361136093,1747301304265,-500.0,0.00011382,2]
[361136094,1747301304289,-400.0,0.00011382,2]
[361136095,1747301304312,-400.0,0.00011382,2]
[361136096,1747301304336,-401.57694032,0.00011382,2]
[361136097,1747301304358,-400.0,0.00011382,2]
[361136098,1747301304382,-400.0,0.00011382,2]
[361136099,1747301304407,-400.0,0.00011382,2]
[361136100,1747301304432,-400.0,0.00011382,2]
[361136101,1747301304456,-515.94179994,0.00011382,2]
[361136102,1747301304481,-400.0,0.00011382,2]
[361136103,1747301304506,-400.0,0.00011382,2]
[361136104,1747301304531,-400.0,0.00011382,2]
[361136105,1747301304555,-400.0,0.00011382,2]
[361136106,1747301304578,-400.0,0.00011382,2]
[361136107,1747301304602,-400.0,0.00011382,2]
[361136108,1747301304626,-400.0,0.00011382,2]
[361136109,1747301304650,-400.0,0.00011382,2]
[361136110,1747301304674,-400.0,0.00011382,2]
[361136111,1747301304698,-557.88,0.00011382,2]
[361136112,1747301304723,-450.0,0.00011382,2]
[361136113,1747301304749,-400.0,0.00011382,2]
[361136114,1747301304773,-400.0,0.00011382,2]
[361136115,1747301304798,-400.0,0.00011382,2]
[361136116,1747301304824,-400.0,0.00011382,2]
[361136117,1747301304847,-400.0,0.00011382,2]
[361136118,1747301304871,-400.0,0.00011382,2]
[361136119,1747301304895,-400.0,0.00011382,2]
[361136120,1747301304920,-400.0,0.00011382,2]
[361136121,1747301304945,-400.0,0.00011382,2]
[361136122,1747301304970,-999.09,0.00011382,2]
[361136123,1747301304995,-400.0,0.00011382,2]
[361136124,1747301305019,-400.0,0.00011382,2]
[361136125,1747301305043,-400.0,0.00011382,2]
[361136126,1747301305067,-400.0,0.00011382,2]
[361136127,1747301305091,-404.04967049,0.00011382,2]
[361136128,1747301305115,-400.0,0.00011382,2]
[361136129,1747301305139,-400.0,0.00011382,2]
[361136130,1747301305163,-295.58516721,0.00011382,2]
[361136131,1747301305187,-400.0,0.00011382,2]
[361136132,1747301305211,-400.0,0.00011382,2]
[361136133,1747301305236,-400.0,0.00011382,2]
[361136134,1747301305261,-400.0,0.00011382,2]
[361136135,1747301305286,-511.74,0.00011382,2]
[361136136,1747301305310,-400.0,0.00011382,2]
[361136137,1747301305335,-400.0,0.00011382,2]
[361136138,1747301305359,-400.0,0.00011382,2]
[361136139,1747301305383,-400.0,0.00011382,2]
[361136140,1747301305408,-400.0,0.00011382,2]
[361136141,1747301305433,-400.0,0.00011382,2]
[361136142,1747301305457,-400.0,0.00011382,2]
[361136143,1747301305482,-400.0,0.00011382,2]
[361136144,1747301305508,-400.0,0.00011382,2]
[361136145,1747301305533,-400.0,0.00011382,2]
[361136146,1747301305560,-400.0,0.00011382,2]
[361136147,1747301305585,-400.0,0.00011382,2]
[361136148,1747301305609,-400.0,0.00011382,2]
[361136149,1747301305634,-400.0,0.00011382,2]
[361136150,1747301305659,-557.81,0.00011382,2]
[361136151,1747301305684,-400.0,0.00011382,2]
[361136152,1747301305708,-400.0,0.00011382,2]
[361136153,1747301305735,-400.0,0.00011382,2]
[361136154,1747301305759,-400.0,0.00011382,2]
[361136155,1747301305783,-448.4344659,0.00011382,2]
[361136156,1747301305807,-400.0,0.00011382,2]
[361136157,1747301305832,-400.0,0.00011382,2]
[361136158,1747301305856,-400.0,0.00011382,2]
[361136159,1747301305880,-400.0,0.00011382,2]
[361136160,1747301305905,-400.0,0.00011382,2]
[361136161,1747301305928,-200.0,0.00011382,2]
[361136162,1747301305953,-400.0,0.00011382,2]
[361136163,1747301305978,-400.0,0.00011382,2]
[361136164,1747301306002,-400.0,0.00011382,2]
[361136165,1747301306027,-400.0,0.00011382,2]
[361136166,1747301306052,-400.0,0.00011382,2]
[361136167,1747301306076,-400.0,0.00011382,2]
[361136168,1747301306100,-151.0,0.00011382,2]
[361136169,1747301306125,-402.79726502,0.00011382,2]
[361136170,1747301306151,-400.0,0.00011382,2]
[361136171,1747301306175,-400.0,0.00011382,2]
[361136172,1747301306199,-395.47724085,0.00011382,2]
[361136173,1747301306225,-400.0,0.00011382,2]
[361136174,1747301306250,-400.0,0.00011382,2]
[361136175,1747301306275,-400.0,0.00011382,2]
[361136176,1747301306299,-411.0453226,0.00011382,2]
[361136177,1747301306322,-400.0,0.00011382,2]
[361136178,1747301306347,-400.0,0.00011382,2]
[361136179,1747301306372,-400.0,0.00011382,2]
[361136180,1747301306396,-400.0,0.00011382,2]
[361136181,1747301306421,-404.05960094,0.00011382,2]
[361136182,1747301306447,-352.22639115,0.00011382,2]
[361136183,1747301306473,-400.0,0.00011382,2]
[361136184,1747301306499,-400.0,0.00011382,2]
[361136185,1747301306524,-2455.30654824,0.00011382,2]
[361136186,1747301306550,-400.0,0.00011382,2]
[361136187,1747301306575,-400.0,0.00011382,2]
[361136188,1747301306601,-400.0,0.00011382,2]
[361136189,1747301306627,-400.0,0.00011382,2]
[361136190,1747301306652,-400.0,0.00011382,2]
[361136191,1747301306677,-400.0,0.00011382,2]
[361136192,1747301306701,-400.0,0.00011382,2]
[361136193,1747301306729,-400.0,0.00011382,2]
[361136194,1747301306753,-400.0,0.00011382,2]
[361136195,1747301306779,-400.0,0.00011382,2]
[361136196,1747301306808,-151.0,0.00011382,2]
[361136197,1747301306832,-1086.64,0.00011382,2]
[361136198,1747301306857,-400.0,0.00011382,2]
[361136199,1747301306881,-400.0,0.00011382,2]
[361136200,1747301306905,-400.93702433,0.00011382,2]
[361136201,1747301306930,-400.0,0.00011382,2]
[361136202,1747301306954,-400.0,0.00011382,2]